fUSD/lending_fUSD_20241111
["ID","MTS","AMOUNT","RATE_DAILY","PERIOD"]
[341940070,1731316254861,-500.0,0.00014794,2]
[341940071,1731316254871,-500.0,0.00014794,2]
[341940072,1731316254880,-500.0,0.00014794,2]
[341940073,1731316254889,-503.34885599,0.00014794,2]
[341940074,1731316254898,-500.0,0.00014794,2]
[341940075,1731316254907,-500.0,0.00014794,2]
[341940076,1731316254916,-468.5452238,0.00014794,2]
[341940077,1731316254925,-500.0,0.00014794,2]
[341940078,1731316254934,-500.0,0.00014794,2]
[341940079,1731316254943,-503.85281202,0.00014794,2]
[341940080,1731316254952,-500.0,0.00014794,2]
[341940081,1731316254961,-500.0,0.00014794,2]
[341940082,1731316254970,-500.0,0.00014794,2]
[341940083,1731316254979,-511.45055247,0.00014794,2]
[341940084,1731316254988,-500.0,0.00014794,2]
[341940085,1731316254998,-500.0,0.00014794,2]
[341940086,1731316255007,-500.0,0.00014794,2]
[341940087,1731316255017,-500.0,0.00014794,2]
[341940088,1731316255026,-500.0,0.00014794,2]
[341940089,1731316255035,-443.43272344,0.00014794,2]
[341940090,1731316255045,-560.18,0.00014794,2]
[341940091,1731316255054,-560.18,0.00014794,2]
[341940092,1731316255066,-560.18,0.00014794,2]
[341940093,1731316255077,-500.0,0.00014794,2]
[341940094,1731316255086,-500.0,0.00014794,2]
[341940095,1731316255096,-500.0,0.00014794,2]
[341940096,1731316255105,-500.0,0.00014794,2]
[341940097,1731316255114,-500.0,0.00014794,2]
[341940098,1731316255123,-500.0,0.00014794,2]
[341940099,1731316255133,-500.0,0.00014794,2]
[341940100,1731316255142,-500.0,0.00014794,2]
[341940101,1731316255151,-500.0,0.00014794,2]
[341940102,1731316255160,-500.0,0.00014794,2]
[341940103,1731316255170,-594.45562437,0.00014794,2]
[341940104,1731316255179,-500.0,0.00014794,2]
[341940105,1731316255188,-500.0,0.00014794,2]
[341940106,1731316255198,-471.19915841,0.00014794,2]
[341940107,1731316255207,-500.0,0.00014794,2]
[341940108,1731316255216,-500.0,0.00014794,2]
[341940109,1731316255226,-500.0,0.00014794,2]
[341940110,1731316255235,-500.0,0.00014794,2]
[341940111,1731316255245,-500.0,0.00014794,2]
[341940112,1731316255254,-365.51,0.00014794,2]
[341940113,1731316255264,-500.0,0.00014794,2]
[341940114,1731316255273,-500.0,0.00014794,2]
[341940115,1731316255282,-500.0,0.00014794,2]
[341940116,1731316255291,-500.0,0.00014794,2]
[341940117,1731316255300,-500.0,0.00014794,2]
[341940118,1731316255310,-1184.8,0.00014794,2]
[341940119,1731316255320,-1184.8,0.00014794,2]
[341940120,1731316255330,-1184.8,0.00014794,2]
[341940121,1731316255339,-500.0,0.00014794,2]
[341940122,1731316255348,-500.0,0.00014794,2]
[341940123,1731316255357,-500.0,0.00014794,2]
[341940124,1731316255367,-500.0,0.00014794,2]
[341940125,1731316255377,-500.0,0.00014794,2]
[341940126,1731316255386,-500.0,0.00014794,2]
[341940127,1731316255395,-500.0,0.00014794,2]
[341940128,1731316255406,-500.0,0.00014794,2]
[341940129,1731316255415,-500.0,0.00014794,2]
[341940130,1731316255425,-500.0,0.00014794,2]
[341940131,1731316255435,-500.0,0.00014794,2]
[341940132,1731316255444,-500.0,0.00014794,2]
[341940133,1731316255454,-500.0,0.00014794,2]
[341940134,1731316255463,-582.49,0.00014794,2]
[341940135,1731316255472,-500.0,0.00014794,2]
[341940136,1731316255483,-582.49,0.00014794,2]
[341940137,1731316255492,-500.0,0.00014794,2]
[341940138,1731316255502,-500.0,0.00014794,2]
[341940139,1731316255511,-582.49,0.00014794,2]
[341940140,1731316255521,-529.3663218,0.00014794,2]
[341940141,1731316255530,-500.0,0.00014794,2]
[341940142,1731316255539,-500.0,0.00014794,2]
[341940143,1731316255548,-500.0,0.00014794,2]
[341940144,1731316255557,-500.0,0.00014794,2]
[341940145,1731316255566,-500.0,0.00014794,2]
[341940146,1731316255577,-500.0,0.00014794,2]
[341940147,1731316255587,-500.0,0.00014794,2]
[341940148,1731316255596,-500.0,0.00014794,2]
[341940149,1731316255607,-500.0,0.00014794,2]
[341940150,1731316255618,-500.0,0.00014794,2]
[341940151,1731316255628,-500.0,0.00014794,2]
[341940152,1731316255638,-500.0,0.00014794,2]
[341940153,1731316255649,-500.0,0.00014794,2]
[341940154,1731316255659,-500.0,0.00014794,2]
[341940155,1731316255670,-291.51588172,0.00014794,2]
[341940156,1731316255681,-388.63,0.00014794,2]
[341940157,1731316255692,-740.88,0.00014794,2]
[341940158,1731316255702,-740.88,0.00014794,2]
[341940159,1731316255712,-740.88,0.00014794,2]
[341940160,1731316255722,-500.0,0.00014794,2]
[341940161,1731316255732,-500.0,0.00014794,2]
[341940162,1731316255741,-500.0,0.00014794,2]
[341940163,1731316255750,-500.0,0.00014794,2]
[341940164,1731316255760,-500.0,0.00014794,2]
[341940165,1731316255769,-500.0,0.00014794,2]
[341940166,1731316255779,-500.0,0.00014794,2]
[341940167,1731316255788,-503.2803896,0.00014794,2]
[341940168,1731316255797,-736.53,0.00014794,2]
[341940169,1731316255807,-505.4624309,0.00014794,2]
[341940170,1731316255816,-736.53,0.00014794,2]
[341940171,1731316255827,-736.53,0.00014794,2]
[341940172,1731316255836,-736.53,0.00014794,2]
[341940173,1731316255846,-151.0,0.00014794,2]
[341940174,1731316255855,-500.0,0.00014794,2]
[341940175,1731316255864,-500.0,0.00014794,2]
[341940176,1731316255873,-500.0,0.00014794,2]
[341940177,1731316255882,-500.0,0.00014794,2]
[341940178,1731316255890,-500.0,0.00014794,2]
[341940179,1731316255899,-524.91979747,0.00014794,2]
[341940180,1731316255909,-500.0,0.00014794,2]
[341940181,1731316255918,-500.0,0.00014794,2]
[341940182,1731316255927,-1320.97,0.00014794,2]
[341940183,1731316255936,-500.0,0.00014794,2]
[341940184,1731316255944,-1320.97,0.00014794,2]
[341940185,1731316255954,-500.0,0.00014794,2]
[341940186,1731316255963,-362.4493516,0.00014794,2]
[341940187,1731316255972,-1320.97,0.00014794,2]
[341940188,1731316255981,-1320.97,0.00014794,2]
[341940189,1731316255991,-158.36,0.00014794,2]
[341940190,1731316256000,-500.0,0.00014794,2]
[341940191,1731316256010,-500.0,0.00014794,2]
[341940192,1731316256019,-500.0,0.00014794,2]
[341940193,1731316256028,-502.29563414,0.00014794,2]
[341940194,1731316256037,-500.0,0.00014794,2]
[341940195,1731316256048,-500.0,0.00014794,2]
[341940196,1731316256061,-185.25,0.00014794,2]
[341940197,1731316256072,-393.62208023,0.00014794,2]
[341940198,1731316256082,-500.0,0.00014794,2]
[341940199,1731316256091,-500.0,0.00014794,2]
[341940200,1731316256102,-500.0,0.00014794,2]
[341940201,1731316256112,-637.22094714,0.00014794,2]
[341940202,1731316256122,-885.14,0.00014794,2]
[341940203,1731316256132,-885.14,0.00014794,2]
[341940204,1731316256142,-885.14,0.00014794,2]
[341940205,1731316256151,-500.0,0.00014794,2]
[341940206,1731316256161,-500.0,0.00014794,2]
[341940207,1731316256170,-576.11523523,0.00014794,2]
[341940208,1731316256180,-500.0,0.00014794,2]
[341940209,1731316256189,-500.0,0.00014794,2]
[341940210,1731316256199,-316.39,0.00014794,2]
[341940211,1731316256208,-444.842244,0.00014794,2]
[341940212,1731316256218,-500.0,0.00014794,2]
[341940213,1731316256227,-500.0,0.00014794,2]
[341940214,1731316256236,-188.13,0.00014794,2]
[341940215,1731316256247,-500.0,0.00014794,2]
[341940216,1731316256256,-444.842244,0.00014794,2]
[341940217,1731316256265,-822.96,0.00014794,2]
[341940218,1731316256275,-822.96,0.00014794,2]
[341940219,1731316256284,-822.96,0.00014794,2]
[341940220,1731316256293,-500.0,0.00014794,2]
[341940221,1731316256303,-500.0,0.00014794,2]
[341940222,1731316256312,-500.0,0.00014794,2]
[341940223,1731316256322,-500.0,0.00014794,2]
[341940224,1731316256331,-500.0,0.00014794,2]
[341940225,1731316256340,-500.0,0.00014794,2]
[341940226,1731316256349,-171.03,0.00014794,2]
[341940227,1731316256358,-505.1,0.00014794,2]
[341940228,1731316256367,-505.1,0.00014794,2]
[341940229,1731316256376,-505.1,0.00014794,2]
[341940230,1731316256385,-500.0,0.00014794,2]
[341940231,1731316256394,-500.0,0.00014794,2]
[341940232,1731316256403,-500.0,0.00014794,2]
[341940233,1731316256411,-500.0,0.00014794,2]
[341940234,1731316256420,-248.04,0.00014794,2]
[341940235,1731316256429,-500.0,0.00014794,2]
[341940236,1731316256438,-500.0,0.00014794,2]
[341940237,1731316256447,-500.0,0.00014794,2]
[341940238,1731316256456,-500.0,0.00014794,2]
[341940239,1731316256465,-500.0,0.00014794,2]
[341940240,1731316256474,-500.0,0.00014794,2]
[341940241,1731316256483,-506.19191182,0.00014794,2]
[341940242,1731316256491,-500.0,0.00014794,2]
[341940243,1731316256501,-500.0,0.00014794,2]
[341940244,1731316256510,-303.98,0.00014794,2]
[341940245,1731316256520,-1076.15,0.00014794,2]
[341940246,1731316256529,-1076.15,0.00014794,2]
[341940247,1731316256539,-500.0,0.00014794,2]
[341940248,1731316256549,-1076.15,0.00014794,2]
[341940249,1731316256558,-500.0,0.00014794,2]
[341940250,1731316256567,-500.0,0.00014794,2]
[341940251,1731316256688,-500.0,0.00014794,2]
[341940252,1731316256699,-500.0,0.00014794,2]
[341940253,1731316256709,-500.0,0.00014794,2]
[341940254,1731316256718,-500.0,0.00014794,2]
[341940255,1731316256728,-500.0,0.00014794,2]
[341940256,1731316256737,-1172.625685,0.00014794,2]
[341940257,1731316256747,-500.0,0.00014794,2]
[341940258,1731316256756,-570.29,0.00014794,2]
[341940259,1731316256765,-500.0,0.00014794,2]
[341940260,1731316256775,-500.0,0.00014794,2]
[341940261,1731316256783,-516.28,0.00014794,2]
[341940262,1731316256792,-500.0,0.00014794,2]
[341940263,1731316256801,-500.0,0.00014794,2]
[341940264,1731316256811,-1172.625685,0.00014794,2]
[341940265,1731316256821,-500.0,0.00014794,2]
[341940266,1731316256831,-500.0,0.00014794,2]
[341940267,1731316256844,-570.29,0.00014794,2]
[341940268,1731316256853,-395.7,0.00014794,2]
[341940269,1731316256862,-500.0,0.00014794,2]
[341940270,1731316256871,-570.29,0.00014794,2]
[341940271,1731316256881,-500.0,0.00014794,2]
[341940272,1731316256890,-500.0,0.00014794,2]
[341940273,1731316256900,-500.0,0.00014794,2]
[341940274,1731316256909,-500.0,0.00014794,2]
[341940275,1731316256918,-500.0,0.00014794,2]
[341940276,1731316256928,-500.0,0.00014794,2]
[341940277,1731316256936,-500.0,0.00014794,2]
[341940278,1731316256948,-296.52,0.00014794,2]
[341940279,1731316256957,-500.0,0.00014794,2]
[341940280,1731316256966,-500.0,0.00014794,2]
[341940281,1731316256975,-500.0,0.00014794,2]
[341940282,1731316256984,-433.14053051,0.00014794,2]
[341940283,1731316256994,-500.0,0.00014794,2]
[341940284,1731316257003,-500.0,0.00014794,2]
[341940285,1731316257013,-500.0,0.00014794,2]
[341940286,1731316257022,-500.0,0.00014794,2]
[341940287,1731316257032,-500.0,0.00014794,2]
[341940288,1731316257043,-500.0,0.00014794,2]
[341940289,1731316257053,-500.0,0.00014794,2]
[341940290,1731316257067,-500.0,0.00014794,2]
[341940291,1731316257078,-500.0,0.00014794,2]
[341940292,1731316257088,-500.0,0.00014794,2]
[341940293,1731316257098,-500.0,0.00014794,2]
[341940294,1731316257107,-500.0,0.00014794,2]
[341940295,1731316257117,-500.0,0.00014794,2]
[341940296,1731316257126,-500.0,0.00014794,2]
[341940297,1731316257136,-179.68902,0.00014794,2]
[341940298,1731316257145,-500.0,0.00014794,2]
[341940299,1731316257155,-500.0,0.00014794,2]
[341940300,1731316257164,-500.0,0.00014794,2]
[341940301,1731316257174,-500.0,0.00014794,2]
[341940302,1731316257184,-500.0,0.00014794,2]
[341940303,1731316257193,-500.0,0.00014794,2]
[341940304,1731316257203,-500.0,0.00014794,2]
[341940305,1731316257212,-179.68902,0.00014794,2]
[341940306,1731316257221,-500.0,0.00014794,2]
[341940307,1731316257230,-500.0,0.00014794,2]
[341940308,1731316257239,-500.0,0.00014794,2]
[341940309,1731316257248,-500.0,0.00014794,2]
[341940310,1731316257258,-500.0,0.00014794,2]
[341940311,1731316257267,-500.0,0.00014794,2]
[341940312,1731316257275,-500.0,0.00014794,2]
[341940313,1731316257285,-76746.73547779,0.00014795,2]
[341940314,1731316257913,-1000.0,0.00014793,2]
[341940315,1731316257923,-500.0,0.00014793,2]
[341940316,1731316257932,-1000.0,0.00014793,2]
[341940317,1731316257941,-1000.0,0.00014793,2]
[341940318,1731316257951,-500.0,0.00014793,2]
[341940319,1731316257960,-1000.0,0.00014793,2]
[341940320,1731316257970,-1000.0,0.00014793,2]
[341940321,1731316257980,-703.86,0.00014793,2]
[341940322,1731316257989,-500.0,0.00014794,2]
[341940323,1731316257998,-500.0,0.00014794,2]
[341940324,1731316258007,-500.0,0.00014794,2]
[341940325,1731316258136,-350.3,0.00014794,2]
[341940326,1731316258146,-500.0,0.00014794,2]
[341940327,1731316258155,-500.0,0.00014794,2]
[341940328,1731316258165,-501.86041051,0.00014794,2]
[341940329,1731316258174,-500.0,0.00014794,2]
[341940330,1731316258183,-7890.7048295,0.00014795,2]
[341940331,1731316258195,-4063.53404482,0.00014795,2]
[341940332,1731316258451,-269.54733392,0.00014795,2]
[341940333,1731316258462,-304.44891002,0.00014795,2]
[341940334,1731316258474,-3471.2574523,0.00014795,2]
[341940335,1731316258485,-812.7868388,0.00014795,2]
[341940336,1731316259282,-38214.68003315,0.00014795,2]
[341940337,1731316259387,150.0,0.00013,5]
[341940338,1731316259411,-3155.08508312,0.00014795,2]
[341940339,1731316259632,-151.0,0.00014794,2]
[341940340,1731316259641,-10.23159224,0.00014795,2]
[341940341,1731316259652,-1730.12717885,0.00014795,2]
[341940342,1731316259664,-32054.41717303,0.00014795,2]
[341940343,1731316259675,-3344.96,0.00014795,2]
[341940344,1731316343531,339.66,0.00011989,2]
[341940345,1731316399181,2000.0,0.00024814,120]
[341940354,1731316999921,2000.0,0.00024919,120]
[341940355,1731317035746,322.67,0.00011863,2]
[341940419,1731317437895,-195.24,0.00013677,2]
[341940420,1731317437904,-200.0,0.000137,2]
[341940421,1731317437913,-3050.58,0.00013707,2]
[341940422,1731317437922,-250.0,0.00013766,2]
[341940423,1731317437931,-170.26,0.00013769,2]
[341940424,1731317437941,-183.66,0.00013774,2]
[341940425,1731317437950,-1000.0,0.00013774,2]
[341940426,1731317437959,-175.75,0.00013785,2]
[341940427,1731317437968,-190.5,0.00013813,2]
[341940428,1731317437977,-164.89,0.00013816,2]
[341940429,1731317437985,-3140.566635,0.00014,3]
[341940430,1731317437994,-150.99,0.00014,2]
[341940431,1731317438004,-322.67,0.00014127,2]
[341940432,1731317438013,-514.94,0.000142,2]
[341940433,1731317438022,-210.0,0.000146,2]
[341940434,1731317438031,-762.78,0.000147,2]
[341940435,1731317438040,-432.43,0.000147,2]
[341940437,1731317438049,-290.98,0.000147,2]
[341940438,1731317438058,-294.64,0.00014742,2]
[341940439,1731317438067,-20036.7544177,0.00014746,2]
[341940440,1731317438077,-150.0,0.00014784,2]
[341940441,1731317438088,-380.032,0.00014792,2]
[341940442,1731317438098,-257.34,0.00014792,2]
[341940443,1731317438108,-255.79,0.00014792,2]
[341940444,1731317438118,-574.25,0.00014792,2]
[341940445,1731317438127,-500.0,0.00014792,2]
[341940446,1731317438137,-500.0,0.00014792,2]
[341940447,1731317438145,-490.0,0.00014792,2]
[341940448,1731317438155,-500.0,0.00014792,2]
[341940449,1731317438164,-500.0,0.00014792,2]
[341940450,1731317438173,-640.59,0.00014792,2]
[341940451,1731317438182,-500.0,0.00014792,2]
[341940452,1731317438192,-500.0,0.00014792,2]
[341940453,1731317438201,-962.02,0.00014792,2]
[341940454,1731317438210,-179.297461,0.00014792,2]
[341940455,1731317438219,-500.0,0.00014792,2]
[341940456,1731317438228,-500.0,0.00014792,2]
[341940457,1731317438237,-299.08,0.00014792,2]
[341940458,1731317438246,-500.0,0.00014792,2]
[341940459,1731317438255,-500.0,0.00014792,2]
[341940460,1731317438264,-766.01,0.00014792,2]
[341940461,1731317438273,-500.0,0.00014792,2]
[341940462,1731317438282,-721.54,0.00014792,2]
[341940463,1731317438291,-500.0,0.00014792,2]
[341940464,1731317438300,-558.25,0.00014792,2]
[341940465,1731317438309,-500.0,0.00014792,2]
[341940466,1731317438318,-500.0,0.00014792,2]
[341940467,1731317438327,-181.347853,0.00014792,2]
[341940468,1731317438340,-500.0,0.00014792,2]
[341940469,1731317438349,-500.0,0.00014792,2]
[341940470,1731317438358,-500.0,0.00014792,2]
[341940471,1731317438367,-500.0,0.00014792,2]
[341940472,1731317438376,-1119.11,0.00014792,2]
[341940473,1731317438385,-2442.4,0.00014792,2]
[341940474,1731317438394,-513.44,0.00014792,2]
[341940475,1731317438405,-500.0,0.00014792,2]
[341940476,1731317438415,-729.02,0.00014792,2]
[341940477,1731317438424,-500.0,0.00014792,2]
[341940478,1731317438433,-1204.75,0.00014792,2]
[341940479,1731317438442,-500.0,0.00014792,2]
[341940480,1731317438451,-500.0,0.00014792,2]
[341940481,1731317438460,-519.29,0.00014792,2]
[341940482,1731317438469,-500.0,0.00014792,2]
[341940483,1731317438478,-500.0,0.00014792,2]
[341940484,1731317438489,-500.0,0.00014792,2]
[341940485,1731317438498,-500.0,0.00014792,2]
[341940486,1731317438507,-500.0,0.00014792,2]
[341940487,1731317438516,-500.0,0.00014792,2]
[341940488,1731317438525,-500.0,0.00014792,2]
[341940489,1731317438534,-1086.71,0.00014792,2]
[341940490,1731317438543,-500.0,0.00014792,2]
[341940491,1731317438552,-500.0,0.00014792,2]
[341940492,1731317438561,-500.0,0.00014792,2]
[341940493,1731317438570,-1378.0,0.00014792,2]
[341940494,1731317438579,-500.0,0.00014792,2]
[341940495,1731317438589,-500.0,0.00014792,2]
[341940496,1731317438598,-500.0,0.00014792,2]
[341940497,1731317438607,-500.0,0.00014792,2]
[341940498,1731317438616,-542.47,0.00014792,2]
[341940499,1731317438625,-914.52,0.00014792,2]
[341940500,1731317438634,-500.0,0.00014792,2]
[341940501,1731317438643,-500.0,0.00014792,2]
[341940502,1731317438652,-1200.69,0.00014792,2]
[341940503,1731317438661,-500.0,0.00014792,2]
[341940504,1731317438670,-774.5,0.00014792,2]
[341940505,1731317438679,-602.31610344,0.00014792,2]
[341940506,1731317438688,-500.0,0.00014792,2]
[341940507,1731317438871,-500.0,0.00014792,2]
[341940508,1731317438881,-500.0,0.00014792,2]
[341940509,1731317438890,-651.51,0.00014792,2]
[341940510,1731317438900,-303.6466026,0.00014792,2]
[341940511,1731317438909,-851.95,0.00014792,2]
[341940512,1731317438918,-500.0,0.00014792,2]
[341940513,1731317438927,-500.0,0.00014792,2]
[341940514,1731317438936,-500.0,0.00014792,2]
[341940515,1731317438946,-500.0,0.00014792,2]
[341940516,1731317438955,-500.0,0.00014792,2]
[341940517,1731317438965,-500.0,0.00014792,2]
[341940518,1731317438974,-500.0,0.00014792,2]
[341940519,1731317438983,-500.0,0.00014792,2]
[341940520,1731317438992,-1000.0,0.00014792,2]
[341940521,1731317439001,-1000.0,0.00014792,2]
[341940522,1731317439011,-1000.0,0.00014792,2]
[341940523,1731317439021,-1000.0,0.00014792,2]
[341940524,1731317439030,-1000.0,0.00014792,2]
[341940525,1731317439039,-500.0,0.00014792,2]
[341940526,1731317439049,-341.5,0.00014792,2]
[341940527,1731317439058,-597.39,0.00014792,2]
[341940528,1731317439067,-500.0,0.00014792,2]
[341940529,1731317439076,-323.24967262,0.00014792,2]
[341940530,1731317439085,-500.0,0.00014792,2]
[341940531,1731317439094,-500.0,0.00014793,2]
[341940532,1731317439103,-314.99987419,0.00014793,2]
[341940533,1731317439112,-500.0,0.00014793,2]
[341940534,1731317439122,-500.69,0.00014793,2]
[341940535,1731317439131,-501.5333351,0.00014793,2]
[341940536,1731317439140,-521.39572955,0.00014793,2]
[341940537,1731317439149,-500.65477596,0.00014793,2]
[341940538,1731317439158,-500.1154416,0.00014793,2]
[341940539,1731317439167,-500.0,0.00014793,2]
[341940540,1731317439177,-500.0,0.00014793,2]
[341940541,1731317439186,-500.0,0.00014793,2]
[341940542,1731317439195,-266.26863831,0.00014793,2]
[341940543,1731317439204,-500.0,0.00014793,2]
[341940544,1731317439214,-500.0,0.00014793,2]
[341940545,1731317439223,-500.0,0.00014793,2]
[341940546,1731317439232,-500.0,0.00014793,2]
[341940547,1731317439241,-354.34398174,0.00014793,2]
[341940548,1731317439250,-300.59483111,0.00014793,2]
[341940549,1731317439259,-500.57927629,0.00014793,2]
[341940550,1731317439269,-478.3472431,0.00014793,2]
[341940551,1731317439279,-500.0,0.00014793,2]
[341940552,1731317439290,-600.58,0.00014793,2]
[341940553,1731317439299,-500.0,0.00014793,2]
[341940554,1731317439308,-500.0,0.00014793,2]
[341940555,1731317439317,-608.88,0.00014793,2]
[341940557,1731317439326,-585.81512976,0.00014793,2]
[341940558,1731317439336,-500.0,0.00014793,2]
[341940560,1731317439345,-646.8,0.00014793,2]
[341940561,1731317439355,-500.0,0.00014793,2]
[341940562,1731317439364,-171.78,0.00014793,2]
[341940563,1731317439373,-506.8753414,0.00014793,2]
[341940565,1731317439383,-500.0,0.00014793,2]
[341940566,1731317439392,-500.0,0.00014793,2]
[341940567,1731317439402,-500.0,0.00014793,2]
[341940568,1731317439414,-500.0,0.00014793,2]
[341940569,1731317439423,-500.0,0.00014793,2]
[341940570,1731317439432,-500.0,0.00014793,2]
[341940571,1731317439441,-468.94,0.00014793,2]
[341940573,1731317439452,-536.78,0.00014793,2]
[341940574,1731317439462,-500.0,0.00014793,2]
[341940576,1731317439473,-500.0,0.00014793,2]
[341940578,1731317439482,-500.0,0.00014793,2]
[341940580,1731317439493,-500.0,0.00014793,2]
[341940582,1731317439503,-500.0,0.00014793,2]
[341940583,1731317439522,-500.0,0.00014793,2]
[341940584,1731317439531,-250.0,0.00014793,2]
[341940585,1731317439540,-500.0,0.00014793,2]
[341940586,1731317439549,-503.30961458,0.00014793,2]
[341940587,1731317439558,-500.0,0.00014793,2]
[341940588,1731317439567,-500.0,0.00014793,2]
[341940589,1731317439576,-350.53342828,0.00014793,2]
[341940590,1731317439586,-500.0,0.00014793,2]
[341940591,1731317439595,-500.0,0.00014793,2]
[341940592,1731317439603,-500.0,0.00014793,2]
[341940593,1731317439613,-500.0,0.00014793,2]
[341940594,1731317439622,-500.0,0.00014793,2]
[341940595,1731317439631,-500.0,0.00014793,2]
[341940596,1731317439641,-500.0,0.00014793,2]
[341940597,1731317439650,-500.0,0.00014793,2]
[341940598,1731317439659,-501.1,0.00014793,2]
[341940599,1731317439668,-500.0,0.00014793,2]
[341940600,1731317439678,-500.0,0.00014793,2]
[341940601,1731317439686,-500.0,0.00014793,2]
[341940602,1731317439696,-500.0,0.00014793,2]
[341940603,1731317439705,-725.64,0.00014793,2]
[341940604,1731317439715,-500.0,0.00014793,2]
[341940605,1731317439723,-600.66,0.00014793,2]
[341940606,1731317439733,-500.0,0.00014793,2]
[341940607,1731317439743,-500.0,0.00014793,2]
[341940608,1731317439752,-545.98,0.00014793,2]
[341940609,1731317439761,-503.44,0.00014793,2]
[341940610,1731317439770,-500.0,0.00014793,2]
[341940611,1731317439780,-500.0,0.00014793,2]
[341940612,1731317439789,-195.75,0.00014793,2]
[341940613,1731317439798,-500.0,0.00014793,2]
[341940614,1731317439807,-500.0,0.00014793,2]
[341940615,1731317439816,-500.0,0.00014793,2]
[341940616,1731317439826,-500.0,0.00014793,2]
[341940617,1731317439836,-500.0,0.00014793,2]
[341940618,1731317439845,-500.0,0.00014793,2]
[341940619,1731317439855,-500.0,0.00014793,2]
[341940620,1731317439864,-185.22552751,0.00014793,2]
[341940621,1731317439873,-500.0,0.00014793,2]
[341940622,1731317439882,-500.0,0.00014793,2]
[341940623,1731317439891,-500.0,0.00014793,2]
[341940624,1731317439901,-489.47923043,0.00014793,2]
[341940625,1731317439910,-500.0,0.00014793,2]
[341940626,1731317439919,-500.0,0.00014793,2]
[341940627,1731317439928,-500.0,0.00014793,2]
[341940628,1731317439938,-500.0,0.00014793,2]
[341940629,1731317439947,-500.0,0.00014793,2]
[341940630,1731317439956,-500.0,0.00014793,2]
[341940631,1731317439965,-500.0,0.00014793,2]
[341940632,1731317439974,-500.0,0.00014793,2]
[341940633,1731317439985,-542.59001222,0.00014793,2]
[341940634,1731317439994,-500.0,0.00014793,2]
[341940635,1731317440003,-500.0,0.00014793,2]
[341940636,1731317440012,-500.0,0.00014793,2]
[341940637,1731317440021,-500.0,0.00014793,2]
[341940638,1731317440030,-500.0,0.00014793,2]
[341940639,1731317440039,-536.9340952,0.00014793,2]
[341940640,1731317440048,-503.86554967,0.00014793,2]
[341940641,1731317440057,-500.0,0.00014793,2]
[341940642,1731317440067,-500.0,0.00014793,2]
[341940643,1731317440076,-511.52582165,0.00014793,2]
[341940644,1731317440086,-317.40637431,0.00014793,2]
[341940645,1731317440099,-500.0,0.00014793,2]
[341940646,1731317440108,-500.0,0.00014793,2]
[341940647,1731317440117,-500.0,0.00014793,2]
[341940648,1731317440126,-500.0,0.00014793,2]
[341940649,1731317440135,-514.75887008,0.00014793,2]